Department Family,Entity,Date,Expense Type,Expense Area,Supplier,SME,Transaction Number,Amount,Description,Expenditure Type
HM Land Registry,HM Land Registry,26/09/2017,Telephone Costs,IS Service Delivery,British Telecommunications Plc,Large,1192910,"45,570.18",Telephone Costs,Administration
HM Land Registry,HM Land Registry,21/09/2017,Computer Equipment Consumables,IS Service Delivery,Canon (UK) Ltd,Large,1192591,"26,660.51",Computer Equipment Consumables,Administration
HM Land Registry,HM Land Registry,21/09/2017,Computer Equipment Consumables,IS Service Delivery,Canon (UK) Ltd,Large,1192590,"25,103.87",Computer Equipment Consumables,Administration
HM Land Registry,HM Land Registry,27/09/2017,Facilities - Core Fee,Birkenhead Office,Carillion Services Ltd,Large,1193154,"5,644.91",Facilities - Core Fee,Administration
HM Land Registry,HM Land Registry,27/09/2017,FM Ext Helpdesk,Birkenhead Office,Carillion Services Ltd,Large,1193154,497.61,Facilities External Helpdesk,Administration
HM Land Registry,HM Land Registry,27/09/2017,FM Managed Services,Birkenhead Office,Carillion Services Ltd,Large,1193154,"6,042.39",Facilities Managed Services,Administration
HM Land Registry,HM Land Registry,27/09/2017,Grounds Maintenance,Birkenhead Office,Carillion Services Ltd,Large,1193154,341.57,Grounds Maintenance,Administration
HM Land Registry,HM Land Registry,27/09/2017,Office Cleaning Expenses,Birkenhead Office,Carillion Services Ltd,Large,1193154,"5,103.24",Office Cleaning Expenses,Administration
HM Land Registry,HM Land Registry,27/09/2017,Pest Control,Birkenhead Office,Carillion Services Ltd,Large,1193154,39.03,Pest Control,Administration
HM Land Registry,HM Land Registry,27/09/2017,Security Expenses,Birkenhead Office,Carillion Services Ltd,Large,1193154,"2,949.01",Security Expenses,Administration
HM Land Registry,HM Land Registry,27/09/2017,Vending Machine Consumables & Repairs,Birkenhead Office,Carillion Services Ltd,Large,1193154,"1,138.11",Vending Machine Consumables & Repairs,Administration
HM Land Registry,HM Land Registry,27/09/2017,Waste Disposal,Birkenhead Office,Carillion Services Ltd,Large,1193154,274.12,Waste Disposal,Administration
HM Land Registry,HM Land Registry,27/09/2017,Facilities - Core Fee,Central Facilities Management Team,Carillion Services Ltd,Large,1193154,"-1,053.93",Facilities - Core Fee,Administration
HM Land Registry,HM Land Registry,27/09/2017,Facilities - Core Fee,Croydon Office,Carillion Services Ltd,Large,1193154,"8,362.23",Facilities - Core Fee,Administration
HM Land Registry,HM Land Registry,27/09/2017,FM Ext Helpdesk,Croydon Office,Carillion Services Ltd,Large,1193154,588.16,Facilities External Helpdesk,Administration
HM Land Registry,HM Land Registry,27/09/2017,FM Managed Services,Croydon Office,Carillion Services Ltd,Large,1193154,"6,106.98",Facilities Managed Services,Administration
HM Land Registry,HM Land Registry,27/09/2017,Grounds Maintenance,Croydon Office,Carillion Services Ltd,Large,1193154,521.27,Grounds Maintenance,Administration
HM Land Registry,HM Land Registry,27/09/2017,Office Cleaning Expenses,Croydon Office,Carillion Services Ltd,Large,1193154,"4,575.61",Office Cleaning Expenses,Administration
HM Land Registry,HM Land Registry,27/09/2017,Pest Control,Croydon Office,Carillion Services Ltd,Large,1193154,37.48,Pest Control,Administration
HM Land Registry,HM Land Registry,27/09/2017,Security Expenses,Croydon Office,Carillion Services Ltd,Large,1193154,"8,175.14",Security Expenses,Administration
HM Land Registry,HM Land Registry,27/09/2017,Vending Machine Consumables & Repairs,Croydon Office,Carillion Services Ltd,Large,1193154,211.93,Vending Machine Consumables & Repairs,Administration
HM Land Registry,HM Land Registry,27/09/2017,Waste Disposal,Croydon Office,Carillion Services Ltd,Large,1193154,200.70,Waste Disposal,Administration
HM Land Registry,HM Land Registry,27/09/2017,Facilities - Core Fee,Director of Information Systems,Carillion Services Ltd,Large,1193154,"18,421.86",Facilities - Core Fee,Administration
HM Land Registry,HM Land Registry,27/09/2017,FM Ext Helpdesk,Director of Information Systems,Carillion Services Ltd,Large,1193154,"1,576.55",Facilities External Helpdesk,Administration
HM Land Registry,HM Land Registry,27/09/2017,FM Managed Services,Director of Information Systems,Carillion Services Ltd,Large,1193154,"13,797.37",Facilities Managed Services,Administration
HM Land Registry,HM Land Registry,27/09/2017,Grounds Maintenance,Director of Information Systems,Carillion Services Ltd,Large,1193154,"1,461.51",Grounds Maintenance,Administration
HM Land Registry,HM Land Registry,27/09/2017,Office Cleaning Expenses,Director of Information Systems,Carillion Services Ltd,Large,1193154,"8,331.82",Office Cleaning Expenses,Administration
HM Land Registry,HM Land Registry,27/09/2017,Pest Control,Director of Information Systems,Carillion Services Ltd,Large,1193154,134.28,Pest Control,Administration
HM Land Registry,HM Land Registry,27/09/2017,Security Expenses,Director of Information Systems,Carillion Services Ltd,Large,1193154,"15,724.05",Security Expenses,Administration
HM Land Registry,HM Land Registry,27/09/2017,Vending Machine Consumables & Repairs,Director of Information Systems,Carillion Services Ltd,Large,1193154,206.36,Vending Machine Consumables & Repairs,Administration
HM Land Registry,HM Land Registry,27/09/2017,Waste Disposal,Director of Information Systems,Carillion Services Ltd,Large,1193154,627.81,Waste Disposal,Administration
HM Land Registry,HM Land Registry,27/09/2017,Facilities - Core Fee,Durham Office,Carillion Services Ltd,Large,1193154,"6,660.25",Facilities - Core Fee,Administration
HM Land Registry,HM Land Registry,27/09/2017,FM Ext Helpdesk,Durham Office,Carillion Services Ltd,Large,1193154,610.99,Facilities External Helpdesk,Administration
HM Land Registry,HM Land Registry,27/09/2017,FM Managed Services,Durham Office,Carillion Services Ltd,Large,1193154,"5,854.57",Facilities Managed Services,Administration
HM Land Registry,HM Land Registry,27/09/2017,Grounds Maintenance,Durham Office,Carillion Services Ltd,Large,1193154,800.04,Grounds Maintenance,Administration
HM Land Registry,HM Land Registry,27/09/2017,Office Cleaning Expenses,Durham Office,Carillion Services Ltd,Large,1193154,"5,927.71",Office Cleaning Expenses,Administration
HM Land Registry,HM Land Registry,27/09/2017,Pest Control,Durham Office,Carillion Services Ltd,Large,1193154,68.46,Pest Control,Administration
HM Land Registry,HM Land Registry,27/09/2017,Security Expenses,Durham Office,Carillion Services Ltd,Large,1193154,"2,390.61",Security Expenses,Administration
HM Land Registry,HM Land Registry,27/09/2017,Vending Machine Consumables & Repairs,Durham Office,Carillion Services Ltd,Large,1193154,41.73,Vending Machine Consumables & Repairs,Administration
HM Land Registry,HM Land Registry,27/09/2017,Waste Disposal,Durham Office,Carillion Services Ltd,Large,1193154,319.12,Waste Disposal,Administration
HM Land Registry,HM Land Registry,27/09/2017,Facilities - Core Fee,Fylde Office,Carillion Services Ltd,Large,1193154,"4,216.31",Facilities - Core Fee,Administration
HM Land Registry,HM Land Registry,27/09/2017,FM Ext Helpdesk,Fylde Office,Carillion Services Ltd,Large,1193154,441.07,Facilities External Helpdesk,Administration
HM Land Registry,HM Land Registry,27/09/2017,FM Managed Services,Fylde Office,Carillion Services Ltd,Large,1193154,"5,747.29",Facilities Managed Services,Administration
HM Land Registry,HM Land Registry,27/09/2017,Grounds Maintenance,Fylde Office,Carillion Services Ltd,Large,1193154,"1,494.11",Grounds Maintenance,Administration
HM Land Registry,HM Land Registry,27/09/2017,Office Cleaning Expenses,Fylde Office,Carillion Services Ltd,Large,1193154,"3,499.12",Office Cleaning Expenses,Administration
HM Land Registry,HM Land Registry,27/09/2017,Pest Control,Fylde Office,Carillion Services Ltd,Large,1193154,36.90,Pest Control,Administration
HM Land Registry,HM Land Registry,27/09/2017,Security Expenses,Fylde Office,Carillion Services Ltd,Large,1193154,"2,165.33",Security Expenses,Administration
HM Land Registry,HM Land Registry,27/09/2017,Vending Machine Consumables & Repairs,Fylde Office,Carillion Services Ltd,Large,1193154,148.92,Vending Machine Consumables & Repairs,Administration
HM Land Registry,HM Land Registry,27/09/2017,Waste Disposal,Fylde Office,Carillion Services Ltd,Large,1193154,245.64,Waste Disposal,Administration
HM Land Registry,HM Land Registry,27/09/2017,Facilities - Core Fee,Gloucester Computer Centre,Carillion Services Ltd,Large,1193154,"8,198.46",Facilities - Core Fee,Administration
HM Land Registry,HM Land Registry,27/09/2017,FM Ext Helpdesk,Gloucester Computer Centre,Carillion Services Ltd,Large,1193154,571.46,Facilities External Helpdesk,Administration
HM Land Registry,HM Land Registry,27/09/2017,FM Managed Services,Gloucester Computer Centre,Carillion Services Ltd,Large,1193154,"2,797.75",Facilities Managed Services,Administration
HM Land Registry,HM Land Registry,27/09/2017,Grounds Maintenance,Gloucester Computer Centre,Carillion Services Ltd,Large,1193154,90.42,Grounds Maintenance,Administration
HM Land Registry,HM Land Registry,27/09/2017,Office Cleaning Expenses,Gloucester Computer Centre,Carillion Services Ltd,Large,1193154,114.67,Office Cleaning Expenses,Administration
HM Land Registry,HM Land Registry,27/09/2017,Pest Control,Gloucester Computer Centre,Carillion Services Ltd,Large,1193154,26.68,Pest Control,Administration
HM Land Registry,HM Land Registry,27/09/2017,Security Expenses,Gloucester Computer Centre,Carillion Services Ltd,Large,1193154,"7,424.06",Security Expenses,Administration
HM Land Registry,HM Land Registry,27/09/2017,Vending Machine Consumables & Repairs,Gloucester Computer Centre,Carillion Services Ltd,Large,1193154,18.98,Vending Machine Consumables & Repairs,Administration
HM Land Registry,HM Land Registry,27/09/2017,Waste Disposal,Gloucester Computer Centre,Carillion Services Ltd,Large,1193154,43.62,Waste Disposal,Administration
HM Land Registry,HM Land Registry,27/09/2017,Facilities - Core Fee,Gloucester Office,Carillion Services Ltd,Large,1193154,"3,757.97",Facilities - Core Fee,Administration
HM Land Registry,HM Land Registry,27/09/2017,FM Ext Helpdesk,Gloucester Office,Carillion Services Ltd,Large,1193154,611.86,Facilities External Helpdesk,Administration
HM Land Registry,HM Land Registry,27/09/2017,FM Managed Services,Gloucester Office,Carillion Services Ltd,Large,1193154,"3,275.82",Facilities Managed Services,Administration
HM Land Registry,HM Land Registry,27/09/2017,Grounds Maintenance,Gloucester Office,Carillion Services Ltd,Large,1193154,611.46,Grounds Maintenance,Administration
HM Land Registry,HM Land Registry,27/09/2017,Office Cleaning Expenses,Gloucester Office,Carillion Services Ltd,Large,1193154,"6,617.31",Office Cleaning Expenses,Administration
HM Land Registry,HM Land Registry,27/09/2017,Pest Control,Gloucester Office,Carillion Services Ltd,Large,1193154,73.36,Pest Control,Administration
HM Land Registry,HM Land Registry,27/09/2017,Security Expenses,Gloucester Office,Carillion Services Ltd,Large,1193154,"8,802.46",Security Expenses,Administration
HM Land Registry,HM Land Registry,27/09/2017,Vending Machine Consumables & Repairs,Gloucester Office,Carillion Services Ltd,Large,1193154,136.49,Vending Machine Consumables & Repairs,Administration
HM Land Registry,HM Land Registry,27/09/2017,Waste Disposal,Gloucester Office,Carillion Services Ltd,Large,1193154,237.87,Waste Disposal,Administration
HM Land Registry,HM Land Registry,27/09/2017,Facilities - Core Fee,Hull Office,Carillion Services Ltd,Large,1193154,"6,786.69",Facilities - Core Fee,Administration
HM Land Registry,HM Land Registry,27/09/2017,FM Ext Helpdesk,Hull Office,Carillion Services Ltd,Large,1193154,489.10,Facilities External Helpdesk,Administration
HM Land Registry,HM Land Registry,27/09/2017,FM Managed Services,Hull Office,Carillion Services Ltd,Large,1193154,"5,577.91",Facilities Managed Services,Administration
HM Land Registry,HM Land Registry,27/09/2017,Grounds Maintenance,Hull Office,Carillion Services Ltd,Large,1193154,611.46,Grounds Maintenance,Administration
HM Land Registry,HM Land Registry,27/09/2017,Office Cleaning Expenses,Hull Office,Carillion Services Ltd,Large,1193154,"3,705.90",Office Cleaning Expenses,Administration
HM Land Registry,HM Land Registry,27/09/2017,Pest Control,Hull Office,Carillion Services Ltd,Large,1193154,46.64,Pest Control,Administration
HM Land Registry,HM Land Registry,27/09/2017,Security Expenses,Hull Office,Carillion Services Ltd,Large,1193154,"2,387.29",Security Expenses,Administration
HM Land Registry,HM Land Registry,27/09/2017,Vending Machine Consumables & Repairs,Hull Office,Carillion Services Ltd,Large,1193154,328.29,Vending Machine Consumables & Repairs,Administration
HM Land Registry,HM Land Registry,27/09/2017,Waste Disposal,Hull Office,Carillion Services Ltd,Large,1193154,179.44,Waste Disposal,Administration
HM Land Registry,HM Land Registry,27/09/2017,Facilities - Core Fee,Leicester Office,Carillion Services Ltd,Large,1193154,"9,260.43",Facilities - Core Fee,Administration
HM Land Registry,HM Land Registry,27/09/2017,FM Ext Helpdesk,Leicester Office,Carillion Services Ltd,Large,1193154,517.46,Facilities External Helpdesk,Administration
HM Land Registry,HM Land Registry,27/09/2017,FM Managed Services,Leicester Office,Carillion Services Ltd,Large,1193154,"4,124.56",Facilities Managed Services,Administration
HM Land Registry,HM Land Registry,27/09/2017,Grounds Maintenance,Leicester Office,Carillion Services Ltd,Large,1193154,128.71,Grounds Maintenance,Administration
HM Land Registry,HM Land Registry,27/09/2017,Office Cleaning Expenses,Leicester Office,Carillion Services Ltd,Large,1193154,"2,236.28",Office Cleaning Expenses,Administration
HM Land Registry,HM Land Registry,27/09/2017,Pest Control,Leicester Office,Carillion Services Ltd,Large,1193154,36.90,Pest Control,Administration
HM Land Registry,HM Land Registry,27/09/2017,Security Expenses,Leicester Office,Carillion Services Ltd,Large,1193154,"1,207.17",Security Expenses,Administration
HM Land Registry,HM Land Registry,27/09/2017,Vending Machine Consumables & Repairs,Leicester Office,Carillion Services Ltd,Large,1193154,109.81,Vending Machine Consumables & Repairs,Administration
HM Land Registry,HM Land Registry,27/09/2017,Waste Disposal,Leicester Office,Carillion Services Ltd,Large,1193154,259.55,Waste Disposal,Administration
HM Land Registry,HM Land Registry,27/09/2017,Facilities - Core Fee,Nottingham Office,Carillion Services Ltd,Large,1193154,"6,418.03",Facilities - Core Fee,Administration
HM Land Registry,HM Land Registry,27/09/2017,FM Ext Helpdesk,Nottingham Office,Carillion Services Ltd,Large,1193154,"1,777.10",Facilities External Helpdesk,Administration
HM Land Registry,HM Land Registry,27/09/2017,FM Managed Services,Nottingham Office,Carillion Services Ltd,Large,1193154,"10,685.06",Facilities Managed Services,Administration
HM Land Registry,HM Land Registry,27/09/2017,Grounds Maintenance,Nottingham Office,Carillion Services Ltd,Large,1193154,310.00,Grounds Maintenance,Administration
HM Land Registry,HM Land Registry,27/09/2017,Office Cleaning Expenses,Nottingham Office,Carillion Services Ltd,Large,1193154,"5,603.57",Office Cleaning Expenses,Administration
HM Land Registry,HM Land Registry,27/09/2017,Pest Control,Nottingham Office,Carillion Services Ltd,Large,1193154,126.01,Pest Control,Administration
HM Land Registry,HM Land Registry,27/09/2017,Security Expenses,Nottingham Office,Carillion Services Ltd,Large,1193154,"3,103.35",Security Expenses,Administration
HM Land Registry,HM Land Registry,27/09/2017,Vending Machine Consumables & Repairs,Nottingham Office,Carillion Services Ltd,Large,1193154,122.75,Vending Machine Consumables & Repairs,Administration
HM Land Registry,HM Land Registry,27/09/2017,Waste Disposal,Nottingham Office,Carillion Services Ltd,Large,1193154,319.12,Waste Disposal,Administration
HM Land Registry,HM Land Registry,27/09/2017,Facilities - Core Fee,Peterborough Office,Carillion Services Ltd,Large,1193154,"3,667.29",Facilities - Core Fee,Administration
HM Land Registry,HM Land Registry,27/09/2017,FM Ext Helpdesk,Peterborough Office,Carillion Services Ltd,Large,1193154,622.51,Facilities External Helpdesk,Administration
HM Land Registry,HM Land Registry,27/09/2017,FM Managed Services,Peterborough Office,Carillion Services Ltd,Large,1193154,"5,384.86",Facilities Managed Services,Administration
HM Land Registry,HM Land Registry,27/09/2017,Office Cleaning Expenses,Peterborough Office,Carillion Services Ltd,Large,1193154,795.60,Office Cleaning Expenses,Administration
HM Land Registry,HM Land Registry,27/09/2017,Pest Control,Peterborough Office,Carillion Services Ltd,Large,1193154,38.35,Pest Control,Administration
HM Land Registry,HM Land Registry,27/09/2017,Facilities - Core Fee,Telford Office,Carillion Services Ltd,Large,1193154,"6,542.91",Facilities - Core Fee,Administration
HM Land Registry,HM Land Registry,27/09/2017,FM Ext Helpdesk,Telford Office,Carillion Services Ltd,Large,1193154,642.31,Facilities External Helpdesk,Administration
HM Land Registry,HM Land Registry,27/09/2017,FM Managed Services,Telford Office,Carillion Services Ltd,Large,1193154,"6,032.59",Facilities Managed Services,Administration
HM Land Registry,HM Land Registry,27/09/2017,Grounds Maintenance,Telford Office,Carillion Services Ltd,Large,1193154,"1,053.73",Grounds Maintenance,Administration
HM Land Registry,HM Land Registry,27/09/2017,Office Cleaning Expenses,Telford Office,Carillion Services Ltd,Large,1193154,"5,912.24",Office Cleaning Expenses,Administration
HM Land Registry,HM Land Registry,27/09/2017,Pest Control,Telford Office,Carillion Services Ltd,Large,1193154,41.90,Pest Control,Administration
HM Land Registry,HM Land Registry,27/09/2017,Security Expenses,Telford Office,Carillion Services Ltd,Large,1193154,"2,662.71",Security Expenses,Administration
HM Land Registry,HM Land Registry,27/09/2017,Vending Machine Consumables & Repairs,Telford Office,Carillion Services Ltd,Large,1193154,187.46,Vending Machine Consumables & Repairs,Administration
HM Land Registry,HM Land Registry,27/09/2017,Waste Disposal,Telford Office,Carillion Services Ltd,Large,1193154,229.52,Waste Disposal,Administration
HM Land Registry,HM Land Registry,27/09/2017,Facilities - Core Fee,Wales Office,Carillion Services Ltd,Large,1193154,"5,563.43",Facilities - Core Fee,Administration
HM Land Registry,HM Land Registry,27/09/2017,FM Ext Helpdesk,Wales Office,Carillion Services Ltd,Large,1193154,528.60,Facilities External Helpdesk,Administration
HM Land Registry,HM Land Registry,27/09/2017,FM Managed Services,Wales Office,Carillion Services Ltd,Large,1193154,"5,800.14",Facilities Managed Services,Administration
HM Land Registry,HM Land Registry,27/09/2017,Grounds Maintenance,Wales Office,Carillion Services Ltd,Large,1193154,453.64,Grounds Maintenance,Administration
HM Land Registry,HM Land Registry,27/09/2017,Office Cleaning Expenses,Wales Office,Carillion Services Ltd,Large,1193154,"4,684.16",Office Cleaning Expenses,Administration
HM Land Registry,HM Land Registry,27/09/2017,Pest Control,Wales Office,Carillion Services Ltd,Large,1193154,90.99,Pest Control,Administration
HM Land Registry,HM Land Registry,27/09/2017,Security Expenses,Wales Office,Carillion Services Ltd,Large,1193154,"2,413.22",Security Expenses,Administration
HM Land Registry,HM Land Registry,27/09/2017,Vending Machine Consumables & Repairs,Wales Office,Carillion Services Ltd,Large,1193154,183.78,Vending Machine Consumables & Repairs,Administration
HM Land Registry,HM Land Registry,27/09/2017,Waste Disposal,Wales Office,Carillion Services Ltd,Large,1193154,529.77,Waste Disposal,Administration
HM Land Registry,HM Land Registry,27/09/2017,Facilities - Core Fee,Weymouth Office,Carillion Services Ltd,Large,1193154,"2,902.79",Facilities - Core Fee,Administration
HM Land Registry,HM Land Registry,27/09/2017,FM Ext Helpdesk,Weymouth Office,Carillion Services Ltd,Large,1193154,396.50,Facilities External Helpdesk,Administration
HM Land Registry,HM Land Registry,27/09/2017,FM Managed Services,Weymouth Office,Carillion Services Ltd,Large,1193154,"5,546.80",Facilities Managed Services,Administration
HM Land Registry,HM Land Registry,27/09/2017,Grounds Maintenance,Weymouth Office,Carillion Services Ltd,Large,1193154,704.77,Grounds Maintenance,Administration
HM Land Registry,HM Land Registry,27/09/2017,Office Cleaning Expenses,Weymouth Office,Carillion Services Ltd,Large,1193154,"4,185.51",Office Cleaning Expenses,Administration
HM Land Registry,HM Land Registry,27/09/2017,Pest Control,Weymouth Office,Carillion Services Ltd,Large,1193154,39.03,Pest Control,Administration
HM Land Registry,HM Land Registry,27/09/2017,Security Expenses,Weymouth Office,Carillion Services Ltd,Large,1193154,"2,665.17",Security Expenses,Administration
HM Land Registry,HM Land Registry,27/09/2017,Vending Machine Consumables & Repairs,Weymouth Office,Carillion Services Ltd,Large,1193154,106.37,Vending Machine Consumables & Repairs,Administration
HM Land Registry,HM Land Registry,27/09/2017,Waste Disposal,Weymouth Office,Carillion Services Ltd,Large,1193154,163.14,Waste Disposal,Administration
HM Land Registry,HM Land Registry,27/09/2017,Facilities - Quoted & Ad Hoc Works,Birkenhead Office,Carillion Services Ltd,Large,1193061,"2,245.33",Facilities - Quoted & Ad Hoc Works,Administration
HM Land Registry,HM Land Registry,27/09/2017,Pest Control,Birkenhead Office,Carillion Services Ltd,Large,1193061,136.19,Pest Control,Administration
HM Land Registry,HM Land Registry,27/09/2017,Waste Disposal,Birkenhead Office,Carillion Services Ltd,Large,1193061,185.57,Waste Disposal,Administration
HM Land Registry,HM Land Registry,27/09/2017,FF&F:Removals,Birkenhead Office,Carillion Services Ltd,Large,1193061,310.30,"Furniture, Fixtures & Fittings: Removals",Administration
HM Land Registry,HM Land Registry,27/09/2017,Facilities - Quoted & Ad Hoc Works,Central Facilities Management Team,Carillion Services Ltd,Large,1193061,"1,139.55",Facilities - Quoted & Ad Hoc Works,Administration
HM Land Registry,HM Land Registry,27/09/2017,Security Expenses,Central Facilities Management Team,Carillion Services Ltd,Large,1193061,-33.41,Security Expenses,Administration
HM Land Registry,HM Land Registry,27/09/2017,Health Screening,Central Facilities Management Team,Carillion Services Ltd,Large,1193061,550.00,Health Screening,Administration
HM Land Registry,HM Land Registry,27/09/2017,"FF&F:Purchases <1,000",Coventry Office,Carillion Services Ltd,Large,1193061,"1,683.42","Furniture, Fixtures & Fittings: Purchases less than 1,000.00",Administration
HM Land Registry,HM Land Registry,27/09/2017,Facilities - Quoted & Ad Hoc Works,Croydon Office,Carillion Services Ltd,Large,1193061,"1,882.99",Facilities - Quoted & Ad Hoc Works,Administration
HM Land Registry,HM Land Registry,27/09/2017,"FF&F:Purchases <1,000",Croydon Office,Carillion Services Ltd,Large,1193061,652.30,"Furniture, Fixtures & Fittings: Purchases less than 1,000.00",Administration
HM Land Registry,HM Land Registry,27/09/2017,Facilities - Quoted & Ad Hoc Works,Director of Information Systems,Carillion Services Ltd,Large,1193061,963.00,Facilities - Quoted & Ad Hoc Works,Administration
HM Land Registry,HM Land Registry,27/09/2017,Waste Disposal,Durham Office,Carillion Services Ltd,Large,1193061,553.26,Waste Disposal,Administration
HM Land Registry,HM Land Registry,27/09/2017,"FF&F:Purchases <1,000",Durham Office,Carillion Services Ltd,Large,1193061,"2,270.94","Furniture, Fixtures & Fittings: Purchases less than 1,000.00",Administration
HM Land Registry,HM Land Registry,27/09/2017,Facilities - Quoted & Ad Hoc Works,Fylde Office,Carillion Services Ltd,Large,1193061,"4,323.12",Facilities - Quoted & Ad Hoc Works,Administration
HM Land Registry,HM Land Registry,27/09/2017,Grounds Maintenance,Fylde Office,Carillion Services Ltd,Large,1193061,147.66,Grounds Maintenance,Administration
HM Land Registry,HM Land Registry,27/09/2017,Waste Disposal,Fylde Office,Carillion Services Ltd,Large,1193061,62.25,Waste Disposal,Administration
HM Land Registry,HM Land Registry,27/09/2017,"FF&F:Purchases <1,000",Fylde Office,Carillion Services Ltd,Large,1193061,575.65,"Furniture, Fixtures & Fittings: Purchases less than 1,000.00",Administration
HM Land Registry,HM Land Registry,27/09/2017,FF&F:Removals,Fylde Office,Carillion Services Ltd,Large,1193061,"1,781.16","Furniture, Fixtures & Fittings: Removals",Administration
HM Land Registry,HM Land Registry,27/09/2017,"Property Management; Advice, Surveys & Inspections",Fylde Office,Carillion Services Ltd,Large,1193061,842.63,"Property Management; Advice, Surveys and Inspections",Administration
HM Land Registry,HM Land Registry,27/09/2017,Facilities - Quoted & Ad Hoc Works,Gloucester Computer Centre,Carillion Services Ltd,Large,1193061,"2,150.70",Facilities - Quoted & Ad Hoc Works,Administration
HM Land Registry,HM Land Registry,27/09/2017,Facilities - Quoted & Ad Hoc Works,Gloucester Office,Carillion Services Ltd,Large,1193061,"3,706.48",Facilities - Quoted & Ad Hoc Works,Administration
HM Land Registry,HM Land Registry,27/09/2017,Waste Disposal,Hull Office,Carillion Services Ltd,Large,1193061,917.82,Waste Disposal,Administration
HM Land Registry,HM Land Registry,27/09/2017,"FF&F:Purchases <1,000",Hull Office,Carillion Services Ltd,Large,1193061,"2,514.80","Furniture, Fixtures & Fittings: Purchases less than 1,000.00",Administration
HM Land Registry,HM Land Registry,27/09/2017,Facilities - Quoted & Ad Hoc Works,Leicester Office,Carillion Services Ltd,Large,1193061,"3,620.61",Facilities - Quoted & Ad Hoc Works,Administration
HM Land Registry,HM Land Registry,27/09/2017,Waste Disposal,Leicester Office,Carillion Services Ltd,Large,1193061,613.06,Waste Disposal,Administration
HM Land Registry,HM Land Registry,27/09/2017,"FF&F:Purchases <1,000",Leicester Office,Carillion Services Ltd,Large,1193061,719.20,"Furniture, Fixtures & Fittings: Purchases less than 1,000.00",Administration
HM Land Registry,HM Land Registry,27/09/2017,Marketing Services,Leicester Office,Carillion Services Ltd,Large,1193061,673.12,Marketing Services,Administration
HM Land Registry,HM Land Registry,27/09/2017,Office Cleaning Expenses,Nottingham Office,Carillion Services Ltd,Large,1193061,681.14,Office Cleaning Expenses,Administration
HM Land Registry,HM Land Registry,27/09/2017,"FF&F:Purchases <1,000",Nottingham Office,Carillion Services Ltd,Large,1193061,"1,090.37","Furniture, Fixtures & Fittings: Purchases less than 1,000.00",Administration
HM Land Registry,HM Land Registry,27/09/2017,Facilities - Quoted & Ad Hoc Works,Peterborough Office,Carillion Services Ltd,Large,1193061,"15,715.41",Facilities - Quoted & Ad Hoc Works,Administration
HM Land Registry,HM Land Registry,27/09/2017,Waste Disposal,Peterborough Office,Carillion Services Ltd,Large,1193061,418.21,Waste Disposal,Administration
HM Land Registry,HM Land Registry,27/09/2017,Facilities - Quoted & Ad Hoc Works,Plymouth Office,Carillion Services Ltd,Large,1193061,963.00,Facilities - Quoted & Ad Hoc Works,Administration
HM Land Registry,HM Land Registry,27/09/2017,Grounds Maintenance,Plymouth Office,Carillion Services Ltd,Large,1193061,"4,220.32",Grounds Maintenance,Administration
HM Land Registry,HM Land Registry,27/09/2017,Waste Disposal,Plymouth Office,Carillion Services Ltd,Large,1193061,312.98,Waste Disposal,Administration
HM Land Registry,HM Land Registry,27/09/2017,"FF&F:Purchases <1,000",Plymouth Office,Carillion Services Ltd,Large,1193061,"2,359.61","Furniture, Fixtures & Fittings: Purchases less than 1,000.00",Administration
HM Land Registry,HM Land Registry,27/09/2017,Facilities - Quoted & Ad Hoc Works,Telford Office,Carillion Services Ltd,Large,1193061,"1,132.83",Facilities - Quoted & Ad Hoc Works,Administration
HM Land Registry,HM Land Registry,27/09/2017,Office Cleaning Expenses,Telford Office,Carillion Services Ltd,Large,1193061,321.00,Office Cleaning Expenses,Administration
HM Land Registry,HM Land Registry,27/09/2017,"FF&F:Purchases <1,000",Telford Office,Carillion Services Ltd,Large,1193061,75.27,"Furniture, Fixtures & Fittings: Purchases less than 1,000.00",Administration
HM Land Registry,HM Land Registry,27/09/2017,Waste Disposal,Wales Office,Carillion Services Ltd,Large,1193061,860.13,Waste Disposal,Administration
HM Land Registry,HM Land Registry,27/09/2017,"FF&F:Purchases <1,000",Wales Office,Carillion Services Ltd,Large,1193061,574.56,"Furniture, Fixtures & Fittings: Purchases less than 1,000.00",Administration
HM Land Registry,HM Land Registry,27/09/2017,Marketing Services,Communications Team,Carillion Services Ltd,Large,1193061,"5,288.25",Marketing Services,Administration
HM Land Registry,HM Land Registry,27/09/2017,Electricity,Birkenhead Office,Carillion Services Ltd,Large,1193062,"4,532.07",Electricity,Administration
HM Land Registry,HM Land Registry,27/09/2017,Gas,Birkenhead Office,Carillion Services Ltd,Large,1193062,435.86,Gas,Administration
HM Land Registry,HM Land Registry,27/09/2017,Water,Birkenhead Office,Carillion Services Ltd,Large,1193062,"12,757.05",Water,Administration
HM Land Registry,HM Land Registry,27/09/2017,Electricity,Croydon Office,Carillion Services Ltd,Large,1193062,"6,787.56",Electricity,Administration
HM Land Registry,HM Land Registry,27/09/2017,Gas,Croydon Office,Carillion Services Ltd,Large,1193062,500.19,Gas,Administration
HM Land Registry,HM Land Registry,27/09/2017,Electricity,Director of Information Systems,Carillion Services Ltd,Large,1193062,"51,794.38",Electricity,Administration
HM Land Registry,HM Land Registry,27/09/2017,Gas,Director of Information Systems,Carillion Services Ltd,Large,1193062,"1,865.32",Gas,Administration
HM Land Registry,HM Land Registry,27/09/2017,Water,Director of Information Systems,Carillion Services Ltd,Large,1193062,"4,250.06",Water,Administration
HM Land Registry,HM Land Registry,27/09/2017,Electricity,Durham Office,Carillion Services Ltd,Large,1193062,"4,585.72",Electricity,Administration
HM Land Registry,HM Land Registry,27/09/2017,Gas,Durham Office,Carillion Services Ltd,Large,1193062,359.88,Gas,Administration
HM Land Registry,HM Land Registry,27/09/2017,Electricity,Fylde Office,Carillion Services Ltd,Large,1193062,"3,455.04",Electricity,Administration
HM Land Registry,HM Land Registry,27/09/2017,Gas,Fylde Office,Carillion Services Ltd,Large,1193062,627.64,Gas,Administration
HM Land Registry,HM Land Registry,27/09/2017,Electricity,Gloucester Computer Centre,Carillion Services Ltd,Large,1193062,"31,005.11",Electricity,Administration
HM Land Registry,HM Land Registry,27/09/2017,Gas,Gloucester Computer Centre,Carillion Services Ltd,Large,1193062,137.06,Gas,Administration
HM Land Registry,HM Land Registry,27/09/2017,Electricity,Gloucester Office,Carillion Services Ltd,Large,1193062,"4,806.12",Electricity,Administration
HM Land Registry,HM Land Registry,27/09/2017,Gas,Gloucester Office,Carillion Services Ltd,Large,1193062,584.61,Gas,Administration
HM Land Registry,HM Land Registry,27/09/2017,Water,Gloucester Office,Carillion Services Ltd,Large,1193062,"4,715.97",Water,Administration
HM Land Registry,HM Land Registry,27/09/2017,Electricity,Hull Office,Carillion Services Ltd,Large,1193062,"5,693.91",Electricity,Administration
HM Land Registry,HM Land Registry,27/09/2017,Gas,Hull Office,Carillion Services Ltd,Large,1193062,859.48,Gas,Administration
HM Land Registry,HM Land Registry,27/09/2017,Water,Hull Office,Carillion Services Ltd,Large,1193062,"2,064.15",Water,Administration
HM Land Registry,HM Land Registry,27/09/2017,Electricity,Leicester Office,Carillion Services Ltd,Large,1193062,"3,431.71",Electricity,Administration
HM Land Registry,HM Land Registry,27/09/2017,Gas,Leicester Office,Carillion Services Ltd,Large,1193062,606.82,Gas,Administration
HM Land Registry,HM Land Registry,27/09/2017,Electricity,Nottingham Office,Carillion Services Ltd,Large,1193062,"5,789.55",Electricity,Administration
HM Land Registry,HM Land Registry,27/09/2017,Gas,Nottingham Office,Carillion Services Ltd,Large,1193062,201.15,Gas,Administration
HM Land Registry,HM Land Registry,27/09/2017,Electricity,Telford Office,Carillion Services Ltd,Large,1193062,"4,586.20",Electricity,Administration
HM Land Registry,HM Land Registry,27/09/2017,Gas,Telford Office,Carillion Services Ltd,Large,1193062,"1,138.17",Gas,Administration
HM Land Registry,HM Land Registry,27/09/2017,Electricity,Wales Office,Carillion Services Ltd,Large,1193062,"4,502.23",Electricity,Administration
HM Land Registry,HM Land Registry,27/09/2017,Gas,Wales Office,Carillion Services Ltd,Large,1193062,271.25,Gas,Administration
HM Land Registry,HM Land Registry,27/09/2017,Electricity,Weymouth Office,Carillion Services Ltd,Large,1193062,"4,793.91",Electricity,Administration
HM Land Registry,HM Land Registry,27/09/2017,Gas,Weymouth Office,Carillion Services Ltd,Large,1193062,64.21,Gas,Administration
HM Land Registry,HM Land Registry,01/09/2017,Computer Equipment Maintenance,IS Service Delivery,CDW Limited,Large,1190885,"59,548.61",Computer Equipment Maintenance,Administration
HM Land Registry,HM Land Registry,06/09/2017,Computer Equipment Maintenance,IS Service Delivery,CGI IT UK Limited,Large,1191270,"61,500.00",Computer Equipment Maintenance,Administration
HM Land Registry,HM Land Registry,11/09/2017,Consultancy Non-IT Advice Only,Dir: Finance,CGI IT UK Limited,Large,1191421,"44,933.65",Consultancy Non-IT Advice Only,Administration
HM Land Registry,HM Land Registry,15/09/2017,Consultancy Non-IT Implement,Dir: Finance,CGI IT UK Limited,Large,1191420,"54,742.96",Consultancy Non-IT Implement,Administration
HM Land Registry,HM Land Registry,26/09/2017,Rates Payable,Wales Office,City & County of Swansea,Large,1176720,"22,580.00",Rates Payable,Administration
HM Land Registry,HM Land Registry,25/09/2017,Rent Payable,Peterborough Office,Commercial Estates Group Ltd,SME,1175266,"59,221.80",Rent Payable,Administration
HM Land Registry,HM Land Registry,26/09/2017,Rates Payable,Durham Office,Durham County Council,Large,1176070,"28,213.00",Rates Payable,Administration
HM Land Registry,HM Land Registry,13/09/2017,Consultancy Non-IT Advice Only,Dir: Legal Services,Enterprise Privacy Group Ltd,SME,1191899,"30,780.00",Consultancy Non-IT Advice Only,Administration
HM Land Registry,HM Land Registry,26/09/2017,Consultancy Non-IT Advice Only,Dir: Legal Services,Enterprise Privacy Group Ltd,SME,1192908,"34,200.00",Consultancy Non-IT Advice Only,Administration
HM Land Registry,HM Land Registry,26/09/2017,Rates Payable,Fylde Office,Fylde Borough Council,Large,1175982,"17,124.00",Rates Payable,Administration
HM Land Registry,HM Land Registry,26/09/2017,Rates Payable,Gloucester Office,Gloucester City Council,Large,1175823,"28,980.00",Rates Payable,Administration
HM Land Registry,HM Land Registry,21/09/2017,Professional Services,Program: Local Land Charges,Kainos Software Ltd,Large,1191272,"330,392.75",Professional Services,Administration
HM Land Registry,HM Land Registry,11/09/2017,Rates Payable,Hull Office,Kingston Upon Hull City Council,Large,1176171,"12,878.00",Rates Payable,Administration
HM Land Registry,HM Land Registry,26/09/2017,Rent Payable,Hull Office,Kingston Upon Hull City Council,Large,1177359,"12,500.00",Rent Payable,Administration
HM Land Registry,HM Land Registry,25/09/2017,Rent Payable,Nottingham Office,Lambert Smith Hampton,Large,1175268,"183,577.50",Rent Payable,Administration
HM Land Registry,HM Land Registry,26/09/2017,Rates Payable,Leicester Office,Leicester City Council,Large,1176378,"24,708.00",Rates Payable,Administration
HM Land Registry,HM Land Registry,25/09/2017,Rent Payable,Gloucester Office,Metrus Property Advisors Ltd,Large,1177660,"211,500.00",Rent Payable,Administration
HM Land Registry,HM Land Registry,29/09/2017,Legal  Expenses,Chief Executives Office,Ministry of Justice,Large,1193256,"49,500.00",Legal  Expenses,Administration
HM Land Registry,HM Land Registry,19/09/2017,Auditors Remuneration,Finance Group,National Audit Office,Large,1192056,"32,500.00",Auditors Remuneration,Administration
HM Land Registry,HM Land Registry,26/09/2017,Rates Payable,Nottingham Office,Nottingham City Council,Large,1176596,"26,585.00",Rates Payable,Administration
HM Land Registry,HM Land Registry,08/09/2017,Computer Equipment Maintenance,IS Service Delivery,Oracle Corporation (UK) Ltd,Large,1190139,"133,992.10",Computer Equipment Maintenance,Administration
HM Land Registry,HM Land Registry,26/09/2017,Rates Payable,Peterborough Office,Peterborough City Council,Large,1176069,"10,690.00",Rates Payable,Administration
HM Land Registry,HM Land Registry,26/09/2017,Rates Payable,Director of Information Systems,Plymouth City Council,Large,1176173,"36,385.00",Rates Payable,Administration
HM Land Registry,HM Land Registry,14/09/2017,Travel & Subsistence General Duty,Birkenhead Office,Redfern Travel Ltd,SME,1192078,"38,620.10",Travel & Subsistence,Administration
HM Land Registry,HM Land Registry,19/09/2017,Travel & Subsistence General Duty,Birkenhead Office,Redfern Travel Ltd,SME,1192390,"30,876.46",Travel & Subsistence,Administration
HM Land Registry,HM Land Registry,26/09/2017,Travel & Subsistence General Duty,Birkenhead Office,Redfern Travel Ltd,SME,1193042,"34,759.46",Travel & Subsistence,Administration
HM Land Registry,HM Land Registry,13/09/2017,Letter Post,Birkenhead Office,Royal Mail,Large,1191881,"83,620.61",Letter Post,Administration
HM Land Registry,HM Land Registry,25/09/2017,Rent Payable,Director of Information Systems,Savills,Large,1175269,"29,550.00",Rent Payable,Administration
HM Land Registry,HM Land Registry,25/09/2017,Rent Payable,Director of Information Systems,Savills,Large,1175264,"41,100.00",Rent Payable,Administration
HM Land Registry,HM Land Registry,26/09/2017,Rates Payable,Director of Information Systems,South Hams District Council,Large,1175825,"7,837.00",Rates Payable,Administration
HM Land Registry,HM Land Registry,26/09/2017,Rates Payable,Director of Information Systems,South Hams District Council,Large,1175824,"4,503.00",Rates Payable,Administration
HM Land Registry,HM Land Registry,06/09/2017,Software as a Service (Cloud),Dir: Finance,Specialist Computer Centres Plc - SCC,Large,1191264,"234,819.08",Cloud Computing Services,Administration
HM Land Registry,HM Land Registry,11/09/2017,Software as a Service (Cloud),IS Service Delivery,Specialist Computer Centres Plc - SCC,Large,1191488,"106,761.11",Cloud Computing Services,Administration
HM Land Registry,HM Land Registry,15/09/2017,Software as a Service (Cloud),Dir: Finance,Specialist Computer Centres Plc - SCC,Large,1191327,"100,548.97",Cloud Computing Services,Administration
HM Land Registry,HM Land Registry,26/09/2017,Rates Payable,Telford Office,Telford & Wrekin Council,Large,1176072,"26,106.00",Rates Payable,Administration
HM Land Registry,HM Land Registry,26/09/2017,Rates Payable,Gloucester Computer Centre,Tewkesbury Borough Council,Large,1174831,"11,615.00",Rates Payable,Administration
HM Land Registry,HM Land Registry,13/09/2017,Rates Payable,Weymouth Office,West Dorset District Council,Large,1176979,"2,411.50",Rates Payable,Administration
HM Land Registry,HM Land Registry,01/09/2017,Rates Payable,Birkenhead Office,Wirral Council,Large,1176876,"27,484.00",Rates Payable,Administration
HM Land Registry,HM Land Registry,06/09/2017,Maps & Plans Data Migration,Forward Scanning,Xerox (UK) Ltd,Large,1190452,"60,954.29",Maps & Plans Data Migration,Administration
HM Land Registry,HM Land Registry,06/09/2017,Maps & Plans Data Migration,Forward Scanning,Xerox (UK) Ltd,Large,1191176,"140,403.64",Maps & Plans Data Migration,Administration
HM Land Registry,HM Land Registry,27/09/2017,Computer Equipment Maintenance,IS Service Delivery,XMA Limited,Large,1191335,"226,008.03",Computer Equipment Maintenance,Administration
HM Land Registry,HM Land Registry,27/09/2017,Computer Equipment Maintenance,Dir: Information Systems,XMA Limited,Large,1191335,"86,926.13",Computer Equipment Maintenance,Administration
